fUST/lending_fUST_20250907
["ID","MTS","AMOUNT","RATE_DAILY","PERIOD"]
[383982480,1757223040090,-154.248058,0.00013698,2]
[383982482,1757223040100,-480.0,0.00013698,2]
[383982484,1757223040109,-480.0,0.00013698,2]
[383982486,1757223040118,-151.588772,0.00013698,2]
[383982488,1757223040128,-480.0,0.00013698,2]
[383982490,1757223040137,-480.0,0.00013698,2]
[383982492,1757223040147,-480.0,0.00013698,2]
[383982494,1757223040157,-455.95514345,0.00013698,2]
[383982496,1757223040166,-319.47710112,0.00013698,2]
[383982498,1757223040176,-480.0,0.00013698,2]
[383982500,1757223040185,-480.0,0.00013698,2]
[383982502,1757223040194,-777.81,0.00013698,2]
[383982504,1757223040204,-480.0,0.00013698,2]
[383982506,1757223040213,-151.0,0.00013698,2]
[383982508,1757223040222,-151.0,0.00013698,2]
[383982510,1757223040232,-151.0,0.00013698,2]
[383982513,1757223040241,-151.0,0.00013698,2]
[383982515,1757223040250,-163.890392,0.00013698,2]
[383982517,1757223040260,-480.0,0.00013698,2]
[383982519,1757223040269,-518.42549044,0.00013698,2]
[383982521,1757223040278,-480.0,0.00013698,2]
[383982523,1757223040287,-480.0,0.00013698,2]
[383982525,1757223040297,-480.0,0.00013698,2]
[383982527,1757223040306,-480.0,0.00013698,2]
[383982529,1757223040315,-480.0,0.00013698,2]
[383982531,1757223040324,-164.882557,0.00013698,2]
[383982533,1757223040333,-549.07,0.00013698,2]
[383982535,1757223040343,-480.0,0.00013698,2]
[383982537,1757223040352,-892.72,0.00013698,2]
[383982539,1757223040361,-487.26565924,0.00013698,2]
[383982541,1757223040371,-480.0,0.00013698,2]
[383982543,1757223040381,-480.0,0.00013698,2]
[383982544,1757223040390,-480.0,0.00013698,2]
[383982546,1757223040399,-480.0,0.00013698,2]
[383982549,1757223040409,-869.38,0.00013698,2]
[383982550,1757223040419,-480.0,0.00013698,2]
[383982553,1757223040428,-480.0,0.00013698,2]
[383982555,1757223040438,-726.41,0.00013698,2]
[383982556,1757223040447,-482.67337649,0.00013698,2]
[383982559,1757223040456,-480.0,0.00013698,2]
[383982560,1757223040466,-1102.53,0.00013698,2]
[383982561,1757223040476,-161.675704,0.00013698,2]
[383982562,1757223040485,-480.0,0.00013698,2]
[383982563,1757223040494,-480.0,0.00013698,2]
[383982564,1757223040503,-481.13815407,0.00013698,2]
[383982565,1757223040513,-453.71069686,0.00013698,2]
[383982566,1757223040522,-587.05,0.00013698,2]
[383982567,1757223040531,-559.68,0.00013698,2]
[383982568,1757223040541,-480.0,0.00013698,2]
[383982569,1757223040550,-480.0,0.00013698,2]
[383982570,1757223040559,-480.0,0.00013698,2]
[383982571,1757223040569,-480.0,0.00013698,2]
[383982572,1757223040578,-480.0,0.00013698,2]
[383982573,1757223040587,-482.93122613,0.00013698,2]
[383982574,1757223040597,-480.0,0.00013698,2]
[383982575,1757223040606,-480.0,0.00013698,2]
[383982576,1757223040615,-480.0,0.00013698,2]
[383982577,1757223040624,-480.0,0.00013698,2]
[383982578,1757223040633,-1165.73,0.00013698,2]
[383982579,1757223040643,-480.0,0.00013698,2]
[383982580,1757223040652,-480.0,0.00013698,2]
[383982581,1757223040660,-480.0,0.00013698,2]
[383982582,1757223040669,-480.0,0.00013698,2]
[383982584,1757223040678,-480.0,0.00013698,2]
[383982585,1757223040687,-1055.49,0.00013698,2]
[383982587,1757223040696,-480.0,0.00013698,2]
[383982589,1757223040705,-484.4678702,0.00013698,2]
[383982591,1757223040715,-480.0,0.00013698,2]
[383982592,1757223040724,-480.0,0.00013698,2]
[383982594,1757223040733,-481.17365682,0.00013698,2]
[383982597,1757223040743,-241.47489464,0.00013698,2]
[383982599,1757223040752,-480.0,0.00013698,2]
[383982600,1757223040761,-480.0,0.00013698,2]
[383982602,1757223040770,-480.0,0.00013698,2]
[383982604,1757223040779,-483.34024859,0.00013698,2]
[383982607,1757223040789,-480.0,0.00013698,2]
[383982608,1757223040799,-480.0,0.00013698,2]
[383982610,1757223040808,-480.0,0.00013698,2]
[383982613,1757223040818,-480.0,0.00013698,2]
[383982614,1757223040827,-480.0,0.00013698,2]
[383982617,1757223040837,-480.0,0.00013698,2]
[383982619,1757223040846,-482.18356988,0.00013698,2]
[383982620,1757223040855,-328.69321764,0.00013698,2]
[383982623,1757223040869,-156.64418849,0.00013698,2]
[383982625,1757223040879,-480.0,0.00013698,2]
[383982627,1757223040888,-482.14331338,0.00013698,2]
[383982629,1757223040898,-480.0,0.00013698,2]
[383982631,1757223040907,-480.0,0.00013698,2]
[383982633,1757223040916,-482.70354806,0.00013698,2]
[383982635,1757223040927,-480.0,0.00013698,2]
[383982637,1757223040937,-480.0,0.00013698,2]
[383982639,1757223040947,-480.0,0.00013698,2]
[383982641,1757223040956,-481.01273808,0.00013698,2]
[383982643,1757223040965,-266.98994336,0.00013698,2]
[383982645,1757223040974,-92.44785455,0.00013698,2]
[383982667,1757223041180,-387.55214545,0.00013698,2]
[383982669,1757223041190,-484.35446848,0.00013698,2]
[383982671,1757223041199,-480.0,0.00013698,2]
[383982673,1757223041208,-480.0,0.00013698,2]
[383982675,1757223041218,-485.45245221,0.00013698,2]
[383982677,1757223041227,-481.8718385,0.00013698,2]
[383982679,1757223041237,-480.0,0.00013698,2]
[383982681,1757223041247,-480.0,0.00013698,2]
[383982683,1757223041256,-480.0,0.00013698,2]
[383982685,1757223041265,-480.0,0.00013698,2]
[383982697,1757223041371,-480.0,0.00013698,2]
[383982699,1757223041381,-480.0,0.00013698,2]
[383982701,1757223041390,-151.0,0.00013698,2]
[383982703,1757223041399,-480.0,0.00013698,2]
[383982705,1757223041409,-480.0,0.00013698,2]
[383982707,1757223041418,-480.0,0.00013698,2]
[383982709,1757223041427,-573.92,0.00013698,2]
[383982711,1757223041438,-1470.01,0.00013698,2]
[383982713,1757223041447,-480.0,0.00013698,2]
[383982715,1757223041456,-481.21,0.00013698,2]
[383982717,1757223041465,-905.55,0.00013698,2]
[383982719,1757223041475,-481.38939447,0.00013698,2]
[383982721,1757223041484,-480.0,0.00013698,2]
[383982723,1757223041493,-480.0,0.00013698,2]
[383982725,1757223041503,-231.66720936,0.00013698,2]
[383982727,1757223041513,-792.31,0.00013698,2]
[383982729,1757223041523,-480.0,0.00013698,2]
[383982731,1757223041532,-480.0,0.00013698,2]
[383982733,1757223041542,-484.87507311,0.00013698,2]
[383982735,1757223041551,-480.0,0.00013698,2]
[383982737,1757223041560,-480.0,0.00013698,2]
[383982739,1757223041570,-480.0,0.00013698,2]
[383982741,1757223041579,-480.0,0.00013698,2]
[383982743,1757223041588,-480.0,0.00013698,2]
[383982745,1757223041598,-484.07988455,0.00013698,2]
[383982747,1757223041608,-1031.74,0.00013698,2]
[383982749,1757223041617,-480.0,0.00013698,2]
[383982751,1757223041627,-480.0,0.00013698,2]
[383982753,1757223041636,-220.22644655,0.00013698,2]
[383982900,1757223043335,-6977.756243,0.00013561,2]
[383982901,1757223043343,-500.0,0.00013697,2]
[383982902,1757223043362,-500.0,0.00013697,2]
[383982903,1757223043371,-500.0,0.00013697,2]
[383982905,1757223043380,-500.0,0.00013697,2]
[383982907,1757223043390,-500.0,0.00013697,2]
[383982909,1757223043400,-500.0,0.00013697,2]
[383982911,1757223043411,-500.0,0.00013697,2]
[383982913,1757223043421,-500.0,0.00013697,2]
[383982915,1757223043430,-500.0,0.00013697,2]
[383982917,1757223043439,-632.07701495,0.00013697,2]
[383982919,1757223043449,-500.0,0.00013697,2]
[383982921,1757223043459,-259.77355345,0.00013698,2]
[383982923,1757223043468,-480.0,0.00013698,2]
[383982925,1757223043477,-480.0,0.00013698,2]
[383982927,1757223043487,-305.47,0.00013698,2]
[383982929,1757223043496,-480.0,0.00013698,2]
[383982931,1757223043506,-480.0,0.00013698,2]
[383982933,1757223043515,-480.0,0.00013698,2]
[383982935,1757223043526,-489.18273746,0.00013698,2]
[383982937,1757223043535,-852.51,0.00013698,2]
[383982939,1757223043544,-480.0,0.00013698,2]
[383982941,1757223043554,-480.0,0.00013698,2]
[383982943,1757223043563,-179.53172178,0.00013698,2]
[383982945,1757223043573,-730.49,0.00013698,2]
[383982947,1757223043582,-480.0,0.00013698,2]
[383982949,1757223043592,-480.0,0.00013698,2]
[383982951,1757223043601,-557.17,0.00013698,2]
[383982953,1757223043610,-772.14,0.00013698,2]
[383982955,1757223043619,-481.73017439,0.00013698,2]
[383982957,1757223043628,-480.0,0.00013698,2]
[383982958,1757223043637,-530.36517927,0.00013698,2]
[383982960,1757223043647,-485.1916348,0.00013698,2]
[383982963,1757223043656,-480.0,0.00013698,2]
[383982964,1757223043666,-481.92846033,0.00013698,2]
[383982967,1757223043676,-31371.18,0.00013698,2]
[383982968,1757223043685,-480.0,0.00013698,2]
[383982970,1757223043694,-480.0,0.00013698,2]
[383982972,1757223043703,-480.0,0.00013698,2]
[383982974,1757223043713,-151.0,0.00013698,2]
[383982976,1757223043722,-151.0,0.00013698,2]
[383982978,1757223043731,-480.0,0.00013698,2]
[383982980,1757223043741,-1014.78,0.00013698,2]
[383982982,1757223043750,-480.0,0.00013698,2]
[383982984,1757223043759,-480.0,0.00013698,2]
[383982986,1757223043769,-480.0,0.00013698,2]
[383982988,1757223043778,-497.41,0.00013698,2]
[383982990,1757223043788,-480.0,0.00013698,2]
[383982992,1757223043797,-480.0,0.00013698,2]
[383982994,1757223043807,-1173.52,0.00013698,2]
[383982996,1757223043817,-467.05965317,0.00013698,2]
[383982998,1757223043826,-481.70240229,0.00013698,2]
[383983000,1757223043835,-480.0,0.00013698,2]
[383983002,1757223043844,-1039.0,0.00013698,2]
[383983004,1757223043854,-486.24006032,0.00013698,2]
[383983006,1757223043863,-480.0,0.00013698,2]
[383983008,1757223043872,-480.0,0.00013698,2]
[383983010,1757223043882,-480.0,0.00013698,2]
[383983012,1757223043893,-3395.14,0.00013698,2]
[383983014,1757223043902,-5809.88,0.00013698,2]
[383983016,1757223043912,-1307.22,0.00013698,2]
[383983018,1757223043921,-480.0,0.00013698,2]
[383983020,1757223043930,-480.0,0.00013698,2]
[383983022,1757223043939,-480.0,0.00013698,2]
[383983024,1757223043950,-480.0,0.00013698,2]
[383983026,1757223043959,-480.0,0.00013698,2]
[383983028,1757223043968,-480.0,0.00013698,2]
[383983029,1757223043977,-480.0,0.00013698,2]
[383983031,1757223043986,-480.0,0.00013698,2]
[383983033,1757223043996,-130.62110496,0.00013698,2]
[383983054,1757223044183,-349.37889504,0.00013698,2]
[383983056,1757223044192,-3183.98,0.00013698,2]
[383983058,1757223044201,-525.85,0.00013698,2]
[383983060,1757223044210,-5763.84,0.00013698,2]
[383983062,1757223044219,-480.0,0.00013698,2]
[383983064,1757223044228,-2423.4,0.00013698,2]
[383983066,1757223044237,-480.0,0.00013698,2]
[383983068,1757223044247,-480.0,0.00013698,2]
[383983070,1757223044256,-480.0,0.00013698,2]
[383983072,1757223044265,-480.0,0.00013698,2]
[383983074,1757223044274,-480.0,0.00013698,2]
[383983076,1757223044283,-480.0,0.00013698,2]
[383983078,1757223044292,-480.0,0.00013698,2]
[383983079,1757223044301,-480.0,0.00013698,2]
[383983081,1757223044310,-480.0,0.00013698,2]
[383983083,1757223044319,-480.0,0.00013698,2]
[383983085,1757223044329,-514.3,0.00013698,2]
[383983087,1757223044338,-480.0,0.00013698,2]
[383983089,1757223044349,-480.0,0.00013698,2]
[383983091,1757223044368,-480.0,0.00013698,2]
[383983093,1757223044382,-480.0,0.00013698,2]
[383983095,1757223044391,-480.0,0.00013698,2]
[383983097,1757223044400,-1950.44,0.00013698,2]
[383983099,1757223044409,-1098.03,0.00013698,2]
[383983101,1757223044418,-480.0,0.00013698,2]
[383983103,1757223044427,-480.0,0.00013698,2]
[383983105,1757223044437,-483.81260145,0.00013698,2]
[383983118,1757223044546,-480.0,0.00013698,2]
[383983120,1757223044556,-480.0,0.00013698,2]
[383983122,1757223044566,-480.0,0.00013698,2]
[383983124,1757223044575,-480.0,0.00013698,2]
[383983126,1757223044585,-151.0,0.00013698,2]
[383983128,1757223044594,-480.0,0.00013698,2]
[383983130,1757223044603,-481.71555185,0.00013698,2]
[383983132,1757223044612,-480.0,0.00013698,2]
[383983134,1757223044622,-480.0,0.00013698,2]
[383983136,1757223044631,-480.0,0.00013698,2]
[383983138,1757223044641,-480.0,0.00013698,2]
[383983140,1757223044650,-781.86,0.00013698,2]
[383983142,1757223044660,-494.15,0.00013698,2]
[383983144,1757223044669,-480.0,0.00013698,2]
[383983146,1757223044678,-480.0,0.00013698,2]
[383983148,1757223044687,-1235.19,0.00013698,2]
[383983150,1757223044697,-4427.97328562,0.00013698,2]
[383983294,1757223046224,248.64,0.00012329,2]
[383984609,1757223164567,5312.0490156,0.00012698,2]
[383984613,1757223235879,23021.4841348,0.00012698,2]
[383984783,1757223650410,183.63664847,0.00013062,2]
[383984788,1757223674080,183.63664847,0.00013062,2]
[383984789,1757223683412,183.63664847,0.00013062,2]
[383984795,1757223710946,303.13,0.00012329,2]
[383984797,1757223721349,154.37,0.00012329,2]
[383984799,1757223731731,771.88,0.00012329,2]
[383984800,1757223742133,171.52,0.00012329,2]
[383984801,1757223752544,237.15,0.00012329,2]
[383984804,1757223762973,300.5,0.00012329,2]
[383984806,1757223773461,250.41,0.00012329,2]
[383984808,1757223784009,434.09,0.00012329,2]
[383984810,1757223794567,461.23,0.00012329,2]
[383984811,1757223804999,384.36,0.00012329,2]
[383984813,1757223815415,414.95,0.00012329,2]
[383984816,1757223825841,490.4,0.00012329,2]
[383984819,1757223836496,408.67,0.00012329,2]
[383984821,1757223846874,395.33,0.00012329,2]
[383984823,1757223857273,413.13,0.00012329,2]
[383984825,1757223868144,344.27,0.00012329,2]
[383984830,1757223878567,318.59,0.00012329,2]
[383984834,1757223888985,424.0,0.00012329,2]
[383984838,1757223899633,353.33,0.00012329,2]
[383984839,1757223905731,183.63664847,0.00013062,2]
[383984841,1757223910036,294.44,0.00012329,2]
[383984844,1757223920451,245.37,0.00012329,2]
[383984846,1757223929172,183.63664847,0.00013062,2]
[383984847,1757223930843,204.47,0.00012329,2]
[383984848,1757223941287,170.39,0.00012329,2]
[383984850,1757223951753,852.0,0.00012329,2]
[383984851,1757223953109,183.63664847,0.00013062,2]
[383984854,1757223975883,183.63664847,0.00013062,2]
[383984857,1757223998846,183.63664847,0.00013062,2]
[383984858,1757224021904,183.63664847,0.00013062,2]
[383984861,1757224044592,183.63664847,0.00013062,2]
[383984864,1757224067089,183.63664847,0.00013062,2]
[383984866,1757224075462,177.3616837,0.00012798,2]
[383984867,1757224083736,183.63664847,0.00013062,2]
[383984891,1757224232275,-1335.13735634,0.00013327,2]
[383984892,1757224232286,-873.24311965,0.00013327,2]
[383984893,1757224232296,-2208.38047599,0.00013462,2]
[383984895,1757224232306,-1200.0,0.00013597,2]
[383984896,1757224232315,-183.63664847,0.00013598,2]
[383984897,1757224232325,-2024.74382752,0.00013598,2]
[383984898,1757224232335,-183.63664843,0.00013667,2]
[383984899,1757224232464,-300.0,0.00013693,2]
[383984900,1757224232475,-300.0,0.00013693,2]
[383984901,1757224232484,-300.0,0.00013693,2]
[383984902,1757224232494,-300.0,0.00013693,2]
[383984903,1757224232503,-300.0,0.00013693,2]
[383984904,1757224232512,-500.0,0.00013697,2]
[383984905,1757224232521,-500.0,0.00013697,2]
[383984906,1757224232531,-500.0,0.00013697,2]
[383984907,1757224232540,-500.0,0.00013697,2]
[383984908,1757224232550,-500.0,0.00013697,2]
[383984909,1757224232559,-396.22094712,0.00013697,2]
[383984910,1757224232568,-500.0,0.00013697,2]
[383984911,1757224232578,-500.0,0.00013697,2]
[383984912,1757224232588,-500.0,0.00013697,2]
[383984913,1757224232597,-500.0,0.00013697,2]
[383984914,1757224232607,-500.0,0.00013697,2]
[383984915,1757224232616,-500.0,0.00013697,2]
[383984916,1757224232625,-500.0,0.00013697,2]
[383984917,1757224232635,-500.0,0.00013697,2]
[383984918,1757224232644,-500.0,0.00013697,2]
[383984919,1757224232654,-500.0,0.00013697,2]
[383984920,1757224232663,-500.0,0.00013697,2]
[383984921,1757224232673,-500.0,0.00013697,2]
[383984922,1757224232684,-500.0,0.00013697,2]
[383984923,1757224232694,-500.0,0.00013697,2]
[383984924,1757224232703,-170.61766324,0.00013697,2]
[383984925,1757224232713,-500.0,0.00013697,2]
[383984926,1757224232723,-500.0,0.00013697,2]
[383984927,1757224232733,-500.0,0.00013697,2]
[383984928,1757224232743,-589.87210747,0.00013697,2]
[383984929,1757224232752,-786.62833509,0.00013698,2]
[383984930,1757224232762,-480.0,0.00013698,2]
[383984931,1757224232771,-481.54893944,0.00013698,2]
[383984932,1757224232781,-713.88,0.00013698,2]
[383984933,1757224232790,-587.64993747,0.00013698,2]
[383984934,1757224232800,-785.77,0.00013698,2]
[383984935,1757224232810,-500.0,0.00013698,2]
[383984936,1757224232820,-157.0,0.00013698,2]
[383984937,1757224232829,-480.0,0.00013698,2]
[383984938,1757224232839,-480.0,0.00013698,2]
[383984939,1757224232849,-480.0,0.00013698,2]
[383984940,1757224232859,-503.9326988,0.00013698,2]
[383984941,1757224232869,-480.0,0.00013698,2]
[383984942,1757224232878,-495.51081075,0.00013698,2]
[383984943,1757224232888,-480.0,0.00013698,2]
[383984944,1757224232897,-480.0,0.00013698,2]
[383984945,1757224232907,-202.72732508,0.00013698,2]
[383984946,1757224232917,-480.0,0.00013698,2]
[383984947,1757224232926,-482.93122613,0.00013698,2]
[383984948,1757224232935,-480.0,0.00013698,2]
[383984949,1757224232945,-480.0,0.00013698,2]
[383984950,1757224232954,-480.0,0.00013698,2]
[383984951,1757224232963,-480.0,0.00013698,2]
[383984952,1757224232972,-480.0,0.00013698,2]
[383984953,1757224232981,-480.0,0.00013698,2]
[383984954,1757224232990,-480.0,0.00013698,2]
[383984955,1757224232999,-480.0,0.00013698,2]
[383984956,1757224233008,-453.71069686,0.00013698,2]
[383984957,1757224233018,-480.0,0.00013698,2]
[383984958,1757224233027,-328.69321764,0.00013698,2]
[383984959,1757224233036,-161.675704,0.00013698,2]
[383984960,1757224233045,-480.0,0.00013698,2]
[383984961,1757224233055,-241.47489464,0.00013698,2]
[383984962,1757224233065,-480.0,0.00013698,2]
[383984963,1757224233075,-480.0,0.00013698,2]
[383984964,1757224233084,-480.0,0.00013698,2]
[383984965,1757224233093,-480.0,0.00013698,2]
[383984966,1757224233102,-480.0,0.00013698,2]
[383984967,1757224233112,-483.19975649,0.00013698,2]
[383984968,1757224233121,-484.4678702,0.00013698,2]
[383984969,1757224233131,-329.10732159,0.00013698,2]
[383984970,1757224233141,-480.0,0.00013698,2]
[383984971,1757224233151,-480.0,0.00013698,2]
[383984972,1757224233160,-419.65871507,0.00013698,2]
[383984973,1757224233169,-480.0,0.00013698,2]
[383984974,1757224233179,-480.0,0.00013698,2]
[383984975,1757224233188,-480.0,0.00013698,2]
[383984976,1757224233198,-771.75,0.00013698,2]
[383984977,1757224233207,-550.01,0.00013698,2]
[383984978,1757224233217,-480.0,0.00013698,2]
[383984979,1757224233226,-480.0,0.00013698,2]
[383984980,1757224233235,-480.0,0.00013698,2]
[383984981,1757224233245,-480.0,0.00013698,2]
[383984982,1757224233254,-480.0,0.00013698,2]
[383984983,1757224233264,-480.0,0.00013698,2]
[383984984,1757224233273,-480.0,0.00013698,2]
[383984985,1757224233283,-480.0,0.00013698,2]
[383984986,1757224233293,-480.0,0.00013698,2]
[383984987,1757224233303,-720.01,0.00013698,2]
[383984988,1757224233313,-480.0,0.00013698,2]
[383984989,1757224233322,-376.85,0.00013698,2]
[383984990,1757224233332,-291.04101805,0.00013698,2]
[383984991,1757224233342,-480.0,0.00013698,2]
[383984992,1757224233352,-480.0,0.00013698,2]
[383984993,1757224233362,-485.62640896,0.00013698,2]
[383984994,1757224233372,-480.0,0.00013698,2]
[383984995,1757224233382,-480.0,0.00013698,2]
[383984996,1757224233392,-236.07,0.00013698,2]
[383984997,1757224233402,-1203.27,0.00013698,2]
[383984998,1757224233413,-481.02348525,0.00013698,2]
[383984999,1757224233423,-480.0,0.00013698,2]
[383985001,1757224233432,-480.0,0.00013698,2]
[383985003,1757224233442,-480.0,0.00013698,2]
[383985005,1757224233452,-480.0,0.00013698,2]
[383985006,1757224233461,-328.39432374,0.00013698,2]
[383985007,1757224233477,-151.60567626,0.00013698,2]
[383985008,1757224233487,-480.0,0.00013698,2]
[383985009,1757224233497,-502.79077304,0.00013698,2]
[383985010,1757224233507,-480.0,0.00013698,2]
[383985011,1757224233517,-369.60791477,0.00013698,2]
[383985012,1757224233526,-593.78,0.00013698,2]
[383985013,1757224233535,-480.0,0.00013698,2]
[383985014,1757224233545,-487.78128368,0.00013698,2]
[383985015,1757224233555,-480.0,0.00013698,2]
[383985016,1757224233564,-501.77,0.00013698,2]
[383985017,1757224233574,-480.0,0.00013698,2]
[383985018,1757224233584,-480.0,0.00013698,2]
[383985019,1757224233593,-480.0,0.00013698,2]
[383985020,1757224233603,-480.0,0.00013698,2]
[383985021,1757224233613,-480.0,0.00013698,2]
[383985022,1757224233623,-714.07,0.00013698,2]
[383985023,1757224233632,-480.0,0.00013698,2]
[383985024,1757224233642,-482.70268227,0.00013698,2]
[383985025,1757224233651,-480.0,0.00013698,2]
[383985026,1757224233662,-480.0,0.00013698,2]
[383985027,1757224233672,-480.0,0.00013698,2]
[383985028,1757224233682,-480.0,0.00013698,2]
[383985029,1757224233692,-480.0,0.00013698,2]
[383985030,1757224233701,-480.0,0.00013698,2]
[383985031,1757224233710,-480.0,0.00013698,2]
[383985032,1757224233720,-462.1966304,0.00013698,2]
[383985052,1757224238243,-75.7033696,0.00013698,2]
[383985053,1757224238252,-232.000424,0.00013698,2]
[383985054,1757224238264,-247.999576,0.00013698,2]
[383985055,1757224238274,-480.0,0.00013698,2]
[383985057,1757224238284,-480.0,0.00013698,2]
[383985059,1757224238294,-480.0,0.00013698,2]
[383985061,1757224238304,-480.0,0.00013698,2]
[383985062,1757224238314,-480.0,0.00013698,2]
[383985063,1757224238324,-480.0,0.00013698,2]
[383985064,1757224238334,-483.04192798,0.00013698,2]
[383985065,1757224238343,-480.0,0.00013698,2]
[383985066,1757224238353,-480.0,0.00013698,2]
[383985067,1757224238362,-480.0,0.00013698,2]
[383985068,1757224238373,-319.47710112,0.00013698,2]
[383985069,1757224238384,-484.18620917,0.00013698,2]
[383985070,1757224238395,-480.0,0.00013698,2]
[383985071,1757224238406,-480.0,0.00013698,2]
[383985072,1757224238420,-797.81,0.00013698,2]
[383985073,1757224238430,-151.0,0.00013698,2]
[383985074,1757224238439,-480.0,0.00013698,2]
[383985075,1757224238448,-151.0,0.00013698,2]
[383985076,1757224238457,-151.0,0.00013698,2]
[383985077,1757224238467,-480.0,0.00013698,2]
[383985078,1757224238476,-480.0,0.00013698,2]
[383985079,1757224238485,-480.0,0.00013698,2]
[383985080,1757224238495,-493.13178909,0.00013698,2]
[383985081,1757224238505,-518.42549044,0.00013698,2]
[383985082,1757224238515,-164.882557,0.00013698,2]
[383985083,1757224238524,-480.0,0.00013698,2]
[383985084,1757224238534,-480.0,0.00013698,2]
[383985085,1757224238543,-569.07,0.00013698,2]
[383985086,1757224238553,-374.09492258,0.00013698,2]
[383985087,1757224238562,-179.49306646,0.00013698,2]
[383985088,1757224238572,-480.0,0.00013698,2]
[383985089,1757224238581,-484.73344031,0.00013698,2]
[383985090,1757224238591,-480.0,0.00013698,2]
[383985091,1757224238600,-480.0,0.00013698,2]
[383985092,1757224238610,-480.0,0.00013698,2]
[383985093,1757224238620,-378.17148043,0.00013698,2]
[383985094,1757224238630,-480.0,0.00013698,2]
[383985095,1757224238639,-480.0,0.00013698,2]
[383985096,1757224238649,-480.0,0.00013698,2]
[383985097,1757224238659,-480.0,0.00013698,2]
[383985098,1757224238669,-480.0,0.00013698,2]
[383985099,1757224238678,-482.67337649,0.00013698,2]
[383985100,1757224238688,-912.72,0.00013698,2]
[383985101,1757224238697,-1122.53,0.00013698,2]
[383985102,1757224238706,-488.01901536,0.00013698,2]
[383985103,1757224238716,-480.0,0.00013698,2]
[383985104,1757224238726,-480.0,0.00013698,2]
[383985105,1757224238735,-480.0,0.00013698,2]
[383985106,1757224238744,-483.09925569,0.00013698,2]
[383985107,1757224238754,-889.38,0.00013698,2]
[383985108,1757224238764,-993.4,0.00013698,2]
[383985109,1757224238773,-480.0,0.00013698,2]
[383985110,1757224238782,-480.0,0.00013698,2]
[383985111,1757224238792,-746.41,0.00013698,2]
[383985112,1757224238801,-607.05,0.00013698,2]
[383985113,1757224238810,-480.0,0.00013698,2]
[383985114,1757224238819,-480.0,0.00013698,2]
[383985115,1757224238829,-480.0,0.00013698,2]
[383985116,1757224238838,-480.0,0.00013698,2]
[383985117,1757224238847,-480.0,0.00013698,2]
[383985118,1757224238857,-480.0,0.00013698,2]
[383985119,1757224238867,-1194.06,0.00013698,2]
[383985120,1757224238877,-480.0,0.00013698,2]
[383985121,1757224238887,-636.14,0.00013698,2]
[383985122,1757224238897,-480.0,0.00013698,2]
[383985123,1757224238907,-480.0,0.00013698,2]
[383985124,1757224238916,-480.0,0.00013698,2]
[383985125,1757224238926,-480.0,0.00013698,2]
[383985126,1757224238936,-480.0,0.00013698,2]
[383985127,1757224238946,-480.0,0.00013698,2]
[383985128,1757224238956,-480.0,0.00013698,2]